fUSD/lending_fUSD_20240718
["ID","MTS","AMOUNT","RATE_DAILY","PERIOD"]
[332519978,1721287971329,-500.0,0.00023013,2]
[332519979,1721287971339,-500.0,0.00023013,2]
[332519980,1721287971348,-500.0,0.00023013,2]
[332519981,1721287971357,-500.0,0.00023013,2]
[332519982,1721287971367,-500.0,0.00023013,2]
[332519983,1721287971378,-836.26,0.00023013,2]
[332519984,1721287971388,-544.15,0.00023013,2]
[332519985,1721287971398,-500.0,0.00023013,2]
[332519986,1721287971407,-500.0,0.00023013,2]
[332519987,1721287971417,-500.0,0.00023013,2]
[332519988,1721287971426,-500.0,0.00023013,2]
[332519989,1721287971436,-744.75,0.00023013,2]
[332519990,1721287971447,-659.68,0.00023013,2]
[332519991,1721287971458,-500.0,0.00023013,2]
[332519992,1721287971468,-500.0,0.00023013,2]
[332519993,1721287971478,-1074.46,0.00023013,2]
[332519994,1721287971488,-918.1,0.00023013,2]
[332519995,1721287971498,-500.0,0.00023013,2]
[332519996,1721287971508,-500.0,0.00023013,2]
[332519997,1721287971518,-500.0,0.00023013,2]
[332519998,1721287971528,-637.37,0.00023013,2]
[332519999,1721287971538,-500.0,0.00023013,2]
[332520000,1721287971548,-500.0,0.00023013,2]
[332520001,1721287971559,-500.0,0.00023013,2]
[332520002,1721287971570,-500.0,0.00023013,2]
[332520003,1721287971580,-941.47,0.00023013,2]
[332520004,1721287971590,-808.27,0.00023013,2]
[332520005,1721287971601,-1715.0,0.00023013,2]
[332520006,1721287971610,-500.0,0.00023013,2]
[332520007,1721287971621,-500.0,0.00023013,2]
[332520008,1721287971636,-500.0,0.00023013,2]
[332520009,1721287971645,-500.0,0.00023013,2]
[332520010,1721287971655,-500.0,0.00023013,2]
[332520011,1721287971665,-702.02,0.00023013,2]
[332520012,1721287971676,-543.92,0.00023013,2]
[332520013,1721287971686,-500.0,0.00023013,2]
[332520014,1721287971696,-500.0,0.00023013,2]
[332520015,1721287971707,-500.0,0.00023013,2]
[332520016,1721287971719,-500.0,0.00023013,2]
[332520017,1721287971728,-500.0,0.00023013,2]
[332520018,1721287971738,-500.0,0.00023013,2]
[332520019,1721287971747,-848.98,0.00023013,2]
[332520020,1721287971757,-500.0,0.00023013,2]
[332520021,1721287971767,-500.0,0.00023013,2]
[332520022,1721287971776,-500.0,0.00023013,2]
[332520023,1721287971785,-500.0,0.00023013,2]
[332520024,1721287971794,-833.62,0.00023013,2]
[332520025,1721287971804,-500.0,0.00023013,2]
[332520026,1721287971814,-500.0,0.00023013,2]
[332520027,1721287971823,-355.97460146,0.00023013,2]
[332520028,1721287971834,-747.03,0.00023013,2]
[332520029,1721287971844,-694.12,0.00023013,2]
[332520030,1721287971854,-500.0,0.00023013,2]
[332520031,1721287971864,-235.93317109,0.00023013,2]
[332520032,1721287971874,-500.0,0.00023013,2]
[332520033,1721287971883,-1393.96,0.00023013,2]
[332520034,1721287971893,-923.3,0.00023013,2]
[332520035,1721287971908,-864.51,0.00023013,2]
[332520036,1721287971919,-500.0,0.00023013,2]
[332520037,1721287971929,-874.63,0.00023013,2]
[332520038,1721287971941,-500.0,0.00023013,2]
[332520039,1721287971951,-500.0,0.00023013,2]
[332520040,1721287971961,-572.13,0.00023013,2]
[332520041,1721287971970,-768.44,0.00023013,2]
[332520042,1721287971980,-515.30702884,0.00023013,2]
[332520043,1721287971989,-919.94,0.00023013,2]
[332520044,1721287971999,-500.0,0.00023013,2]
[332520045,1721287972009,-500.0,0.00023013,2]
[332520046,1721287972019,-500.0,0.00023013,2]
[332520047,1721287972029,-500.0,0.00023013,2]
[332520048,1721287972039,-500.0,0.00023013,2]
[332520049,1721287972049,-500.0,0.00023013,2]
[332520050,1721287972298,-500.0,0.00023013,2]
[332520051,1721287972323,-500.0,0.00023013,2]
[332520052,1721287972333,-500.0,0.00023013,2]
[332520053,1721287972343,-500.0,0.00023013,2]
[332520054,1721287972353,-567.01,0.00023013,2]
[332520055,1721287972362,-750.97,0.00023013,2]
[332520056,1721287972372,-500.0,0.00023013,2]
[332520057,1721287972381,-512.49463039,0.00023013,2]
[332520058,1721287972391,-500.0,0.00023013,2]
[332520059,1721287972403,-664.81,0.00023013,2]
[332520060,1721287972412,-500.0,0.00023013,2]
[332520061,1721287972422,-500.0,0.00023013,2]
[332520062,1721287972432,-500.0,0.00023013,2]
[332520063,1721287972443,-500.0,0.00023013,2]
[332520064,1721287972453,-500.0,0.00023013,2]
[332520065,1721287972463,-1439.37,0.00023013,2]
[332520066,1721287972474,-500.0,0.00023013,2]
[332520067,1721287972484,-820.24,0.00023013,2]
[332520068,1721287972494,-500.0,0.00023013,2]
[332520069,1721287972503,-500.0,0.00023013,2]
[332520070,1721287972513,-500.0,0.00023013,2]
[332520071,1721287972522,-659.88,0.00023013,2]
[332520072,1721287972532,-500.0,0.00023013,2]
[332520073,1721287972541,-500.0,0.00023013,2]
[332520074,1721287972551,-500.0,0.00023013,2]
[332520075,1721287972561,-675.36,0.00023013,2]
[332520076,1721287972571,-500.0,0.00023013,2]
[332520077,1721287972580,-500.0,0.00023013,2]
[332520078,1721287972591,-1239.37,0.00023013,2]
[332520079,1721287972601,-500.0,0.00023013,2]
[332520080,1721287972611,-500.0,0.00023013,2]
[332520081,1721287972621,-500.0,0.00023013,2]
[332520082,1721287972637,-587.43,0.00023013,2]
[332520083,1721287972649,-500.0,0.00023013,2]
[332520084,1721287972659,-500.0,0.00023013,2]
[332520085,1721287972669,-500.0,0.00023013,2]
[332520086,1721287972679,-500.0,0.00023013,2]
[332520087,1721287972688,-500.0,0.00023013,2]
[332520088,1721287972698,-500.0,0.00023013,2]
[332520089,1721287972710,-500.0,0.00023013,2]
[332520090,1721287972721,-500.0,0.00023013,2]
[332520091,1721287972730,-500.0,0.00023013,2]
[332520092,1721287972740,-500.0,0.00023013,2]
[332520093,1721287972750,-500.0,0.00023013,2]
[332520094,1721287972759,-1037.75,0.00023013,2]
[332520095,1721287972769,-500.0,0.00023013,2]
[332520096,1721287972779,-1312.95,0.00023013,2]
[332520097,1721287972788,-500.0,0.00023013,2]
[332520098,1721287972799,-500.0,0.00023013,2]
[332520099,1721287972810,-1508.18,0.00023013,2]
[332520100,1721287972820,-759.36,0.00023013,2]
[332520101,1721287972830,-502.08191048,0.00023013,2]
[332520102,1721287972840,-589.69,0.00023013,2]
[332520103,1721287972851,-500.0,0.00023013,2]
[332520104,1721287972861,-589.59,0.00023013,2]
[332520105,1721287972871,-500.0,0.00023013,2]
[332520106,1721287972881,-504.85395863,0.00023013,2]
[332520107,1721287972890,-500.0,0.00023013,2]
[332520108,1721287972901,-500.0,0.00023013,2]
[332520109,1721287972911,-500.0,0.00023013,2]
[332520110,1721287972920,-295.40228185,0.00023013,2]
[332520111,1721287972930,-500.0,0.00023013,2]
[332520112,1721287972940,-519.36,0.00023013,2]
[332520113,1721287972950,-500.0,0.00023013,2]
[332520114,1721287972960,-500.0,0.00023013,2]
[332520115,1721287972970,-465.48,0.00023013,2]
[332520116,1721287972979,-500.0,0.00023013,2]
[332520117,1721287972990,-500.0,0.00023013,2]
[332520118,1721287973000,-500.0,0.00023013,2]
[332520119,1721287973010,-500.0,0.00023013,2]
[332520120,1721287973019,-500.0,0.00023013,2]
[332520121,1721287973029,-1570.3,0.00023013,2]
[332520122,1721287973040,-500.0,0.00023013,2]
[332520123,1721287973050,-526.08,0.00023013,2]
[332520124,1721287973060,-500.0,0.00023013,2]
[332520125,1721287973071,-500.0,0.00023013,2]
[332520126,1721287973081,-500.0,0.00023013,2]
[332520127,1721287973092,-500.0,0.00023013,2]
[332520128,1721287973102,-500.0,0.00023013,2]
[332520129,1721287973112,-500.0,0.00023013,2]
[332520130,1721287973122,-500.0,0.00023013,2]
[332520131,1721287973132,-684.5,0.00023013,2]
[332520132,1721287973142,-500.0,0.00023013,2]
[332520133,1721287973153,-500.0,0.00023013,2]
[332520134,1721287973163,-500.0,0.00023013,2]
[332520135,1721287973174,-500.0,0.00023013,2]
[332520136,1721287973184,-500.0,0.00023013,2]
[332520137,1721287973196,-778.25,0.00023013,2]
[332520138,1721287973206,-500.0,0.00023013,2]
[332520139,1721287973216,-1825.46,0.00023013,2]
[332520140,1721287973226,-647.56,0.00023013,2]
[332520141,1721287973236,-500.0,0.00023013,2]
[332520142,1721287973246,-1501.12,0.00023013,2]
[332520143,1721287973256,-464.70990401,0.00023013,2]
[332520144,1721287973266,-649.76,0.00023013,2]
[332520145,1721287973275,-500.0,0.00023013,2]
[332520146,1721287973285,-500.0,0.00023013,2]
[332520147,1721287973295,-500.0,0.00023013,2]
[332520148,1721287973304,-500.0,0.00023013,2]
[332520149,1721287973315,-500.0,0.00023013,2]
[332520150,1721287973325,-500.0,0.00023013,2]
[332520151,1721287973335,-500.0,0.00023013,2]
[332520152,1721287973344,-698.16,0.00023013,2]
[332520153,1721287973354,-500.0,0.00023013,2]
[332520154,1721287973363,-503.09877495,0.00023013,2]
[332520155,1721287973373,-500.0,0.00023013,2]
[332520156,1721287973383,-500.0,0.00023013,2]
[332520157,1721287973393,-500.0,0.00023013,2]
[332520158,1721287973405,-162.91093785,0.00023013,2]
[332520159,1721287973415,-500.0,0.00023013,2]
[332520160,1721287973425,-500.0,0.00023013,2]
[332520161,1721287973434,-500.0,0.00023013,2]
[332520162,1721287973444,-838.21,0.00023013,2]
[332520163,1721287973453,-500.0,0.00023013,2]
[332520164,1721287973464,-508.80630726,0.00023013,2]
[332520165,1721287973474,-500.0,0.00023013,2]
[332520166,1721287973484,-500.0,0.00023013,2]
[332520167,1721287973494,-500.0,0.00023013,2]
[332520168,1721287973503,-500.0,0.00023013,2]
[332520169,1721287973514,-832.49,0.00023013,2]
[332520170,1721287973525,-500.0,0.00023013,2]
[332520171,1721287973535,-500.0,0.00023013,2]
[332520172,1721287973545,-1002.59,0.00023013,2]
[332520173,1721287973555,-500.0,0.00023013,2]
[332520174,1721287973565,-500.0,0.00023013,2]
[332520175,1721287973576,-500.0,0.00023013,2]
[332520176,1721287973586,-500.0,0.00023013,2]
[332520177,1721287973596,-635.85,0.00023013,2]
[332520178,1721287973605,-500.0,0.00023013,2]
[332520179,1721287973615,-500.0,0.00023013,2]
[332520180,1721287973631,-500.0,0.00023013,2]
[332520181,1721287973641,-515.18661999,0.00023013,2]
[332520182,1721287973651,-667.65,0.00023013,2]
[332520183,1721287973662,-500.0,0.00023013,2]
[332520184,1721287973673,-500.0,0.00023013,2]
[332520185,1721287973682,-500.0,0.00023013,2]
[332520186,1721287973692,-500.0,0.00023013,2]
[332520187,1721287973703,-500.0,0.00023013,2]
[332520188,1721287973714,-507.66278947,0.00023013,2]
[332520189,1721287973724,-500.0,0.00023013,2]
[332520190,1721287973734,-500.0,0.00023013,2]
[332520191,1721287973743,-1264.99,0.00023013,2]
[332520192,1721287973753,-500.0,0.00023013,2]
[332520193,1721287973763,-558.12,0.00023013,2]
[332520194,1721287973772,-516.74132027,0.00023013,2]
[332520195,1721287973782,-500.0,0.00023013,2]
[332520196,1721287973792,-828.72,0.00023013,2]
[332520197,1721287973802,-500.0,0.00023013,2]
[332520198,1721287973812,-500.0,0.00023013,2]
[332520199,1721287973822,-935.3,0.00023013,2]
[332520200,1721287973832,-825.13,0.00023013,2]
[332520201,1721287973843,-500.0,0.00023013,2]
[332520202,1721287973853,-500.0,0.00023013,2]
[332520203,1721287973863,-500.0,0.00023013,2]
[332520204,1721287973873,-500.0,0.00023013,2]
[332520205,1721287973883,-500.0,0.00023013,2]
[332520206,1721287973893,-500.0,0.00023013,2]
[332520207,1721287973905,-500.0,0.00023013,2]
[332520208,1721287973915,-572.09,0.00023013,2]
[332520209,1721287973925,-500.0,0.00023013,2]
[332520210,1721287973936,-500.0,0.00023013,2]
[332520211,1721287973947,-801.73,0.00023013,2]
[332520212,1721287973957,-500.0,0.00023013,2]
[332520213,1721287973967,-829.06,0.00023013,2]
[332520214,1721287973976,-500.0,0.00023013,2]
[332520215,1721287973987,-500.0,0.00023013,2]
[332520216,1721287973996,-500.0,0.00023013,2]
[332520217,1721287974007,-500.0,0.00023013,2]
[332520218,1721287974017,-500.0,0.00023013,2]
[332520219,1721287974027,-500.0,0.00023013,2]
[332520220,1721287974038,-500.0,0.00023013,2]
[332520221,1721287974048,-500.0,0.00023013,2]
[332520222,1721287974058,-500.0,0.00023013,2]
[332520223,1721287974068,-500.0,0.00023013,2]
[332520224,1721287974078,-533.21,0.00023013,2]
[332520225,1721287974088,-1500.37,0.00023013,2]
[332520226,1721287974098,-500.0,0.00023013,2]
[332520227,1721287974108,-993.33,0.00023013,2]
[332520228,1721287974118,-500.0,0.00023013,2]
[332520229,1721287974127,-500.0,0.00023013,2]
[332520230,1721287974138,-500.0,0.00023013,2]
[332520231,1721287974148,-500.0,0.00023013,2]
[332520232,1721287974157,-916.75,0.00023013,2]
[332520233,1721287974167,-500.0,0.00023013,2]
[332520234,1721287974176,-500.0,0.00023013,2]
[332520235,1721287974186,-500.0,0.00023013,2]
[332520236,1721287974196,-614.68,0.00023013,2]
[332520237,1721287974206,-500.0,0.00023013,2]
[332520238,1721287974218,-839.63,0.00023013,2]
[332520239,1721287974229,-1099.16,0.00023013,2]
[332520240,1721287974239,-2190.92,0.00023013,2]
[332520241,1721287974249,-500.0,0.00023013,2]
[332520242,1721287974259,-500.0,0.00023013,2]
[332520243,1721287974270,-769.89,0.00023013,2]
[332520244,1721287974280,-633.86196086,0.00023013,2]
[332520245,1721287974290,-500.0,0.00023013,2]
[332520246,1721287974300,-860.39,0.00023013,2]
[332520247,1721287974310,-500.0,0.00023013,2]
[332520248,1721287974319,-1387.79,0.00023013,2]
[332520249,1721287974329,-500.0,0.00023013,2]
[332520250,1721287974338,-500.0,0.00023013,2]
[332520251,1721287974349,-500.0,0.00023013,2]
[332520252,1721287974359,-500.0,0.00023013,2]
[332520253,1721287974368,-500.0,0.00023013,2]
[332520254,1721287974378,-621.09,0.00023013,2]
[332520255,1721287974388,-500.0,0.00023013,2]
[332520256,1721287974397,-500.0,0.00023013,2]
[332520257,1721287974407,-2607.0,0.00023013,2]
[332520258,1721287974416,-500.0,0.00023013,2]
[332520259,1721287974426,-500.0,0.00023013,2]
[332520260,1721287974436,-934.95,0.00023013,2]
[332520261,1721287974446,-634.32,0.00023013,2]
[332520262,1721287974456,-1185.83,0.00023013,2]
[332520263,1721287974467,-714.68,0.00023013,2]
[332520264,1721287974477,-500.0,0.00023013,2]
[332520265,1721287974487,-500.0,0.00023013,2]
[332520266,1721287974498,-500.0,0.00023013,2]
[332520267,1721287974509,-706.1,0.00023013,2]
[332520268,1721287974518,-158.44010075,0.00023013,2]
[332520269,1721287974528,-992.23,0.00023013,2]
[332520270,1721287974538,-500.0,0.00023013,2]
[332520271,1721287974547,-719.06,0.00023013,2]
[332520272,1721287974557,-500.0,0.00023013,2]
[332520273,1721287974568,-500.0,0.00023013,2]
[332520274,1721287974578,-500.0,0.00023013,2]
[332520275,1721287974588,-962.74,0.00023013,2]
[332520276,1721287974599,-879.71,0.00023013,2]
[332520277,1721287974608,-500.0,0.00023013,2]
[332520278,1721287974617,-4194.17,0.00023013,2]
[332520279,1721287974628,-500.0,0.00023013,2]
[332520280,1721287974638,-500.0,0.00023013,2]
[332520281,1721287974648,-500.0,0.00023013,2]
[332520282,1721287974658,-500.0,0.00023013,2]
[332520283,1721287974668,-500.0,0.00023013,2]
[332520284,1721287974679,-500.0,0.00023013,2]
[332520285,1721287974690,-500.0,0.00023013,2]
[332520286,1721287974701,-605.3860402,0.00023013,2]
[332520287,1721287974713,-796.16,0.00023013,2]
[332520288,1721287974724,-1343.67,0.00023013,2]
[332520289,1721287974734,-500.0,0.00023013,2]
[332520290,1721287974744,-500.0,0.00023013,2]
[332520291,1721287974756,-845.59,0.00023013,2]
[332520292,1721287974769,-500.0,0.00023013,2]
[332520293,1721287974781,-607.98,0.00023013,2]
[332520294,1721287974791,-500.0,0.00023013,2]
[332520295,1721287974801,-884.87,0.00023013,2]
[332520296,1721287974812,-500.0,0.00023013,2]
[332520297,1721287974822,-500.0,0.00023013,2]
[332520298,1721287974832,-500.0,0.00023013,2]
[332520299,1721287974843,-500.0,0.00023013,2]
[332520300,1721287974854,-500.0,0.00023013,2]
[332520301,1721287974865,-563.78,0.00023013,2]
[332520302,1721287974876,-500.0,0.00023013,2]
[332520303,1721287974886,-664.21,0.00023013,2]
[332520304,1721287975003,-500.0,0.00023013,2]
[332520305,1721287975013,-500.0,0.00023013,2]
[332520306,1721287975023,-500.0,0.00023013,2]
[332520307,1721287975032,-619.48,0.00023013,2]
[332520308,1721287975042,-1023.41,0.00023013,2]
[332520309,1721287975052,-500.0,0.00023013,2]
[332520310,1721287975061,-4286.57,0.00023013,2]
[332520311,1721287975071,-759.2,0.00023013,2]
[332520312,1721287975080,-699.13,0.00023013,2]
[332520313,1721287975089,-500.0,0.00023013,2]
[332520314,1721287975098,-478.0,0.00023013,2]
[332520315,1721287975108,-500.0,0.00023013,2]
[332520316,1721287975118,-500.0,0.00023013,2]
[332520317,1721287975128,-500.0,0.00023013,2]
[332520318,1721287975138,-1303.0,0.00023013,2]
[332520319,1721287975147,-664.93,0.00023013,2]
[332520320,1721287975160,-500.0,0.00023013,2]
[332520321,1721287975172,-500.0,0.00023013,2]
[332520322,1721287975182,-779.15,0.00023013,2]
[332520323,1721287975192,-799.99,0.00023013,2]
[332520324,1721287975202,-500.0,0.00023013,2]
[332520325,1721287975211,-840.9,0.00023013,2]
[332520326,1721287975220,-705.02,0.00023013,2]
[332520327,1721287975229,-500.0,0.00023013,2]
[332520328,1721287975238,-500.0,0.00023013,2]
[332520329,1721287975248,-1213.95,0.00023013,2]
[332520330,1721287975257,-500.0,0.00023013,2]
[332520331,1721287975267,-502.77244717,0.00023013,2]
[332520332,1721287975277,-500.0,0.00023013,2]
[332520333,1721287975286,-500.0,0.00023013,2]
[332520334,1721287975295,-500.0,0.00023013,2]
[332520335,1721287975305,-712.43,0.00023013,2]
[332520336,1721287975315,-500.0,0.00023013,2]
[332520337,1721287975324,-615.07,0.00023013,2]
[332520338,1721287975333,-500.0,0.00023013,2]
[332520339,1721287975343,-640.55,0.00023013,2]
[332520340,1721287975352,-500.0,0.00023013,2]
[332520341,1721287975362,-842.93,0.00023013,2]
[332520342,1721287975372,-500.0,0.00023013,2]
[332520343,1721287975382,-500.0,0.00023013,2]
[332520344,1721287975391,-500.0,0.00023013,2]
[332520345,1721287975402,-500.0,0.00023013,2]
[332520346,1721287975412,-515.65,0.00023013,2]
[332520347,1721287975421,-500.0,0.00023013,2]
[332520348,1721287975431,-500.0,0.00023013,2]
[332520349,1721287975441,-500.0,0.00023013,2]
[332520350,1721287975453,-500.0,0.00023013,2]
[332520351,1721287975462,-964.94,0.00023013,2]
[332520352,1721287975471,-500.0,0.00023013,2]
[332520353,1721287975481,-592.68,0.00023013,2]
[332520354,1721287975490,-6375.98,0.00023013,2]
[332520355,1721287975500,-1083.93,0.00023013,2]
[332520356,1721287975509,-500.0,0.00023013,2]
[332520357,1721287975519,-1037.41,0.00023013,2]
[332520358,1721287975529,-1379.21,0.00023013,2]
[332520359,1721287975538,-500.0,0.00023013,2]
[332520360,1721287975547,-500.0,0.00023013,2]
[332520361,1721287975557,-500.0,0.00023013,2]
[332520362,1721287975566,-500.0,0.00023013,2]
[332520363,1721287975575,-500.0,0.00023013,2]
[332520364,1721287975585,-500.0,0.00023013,2]
[332520365,1721287975594,-559.08,0.00023013,2]
[332520366,1721287975603,-1777.51,0.00023013,2]
[332520367,1721287975612,-500.0,0.00023013,2]
[332520368,1721287975622,-1444.47,0.00023013,2]
[332520369,1721287975635,-500.0,0.00023013,2]
[332520370,1721287975644,-1147.47,0.00023013,2]
[332520371,1721287975656,-500.0,0.00023013,2]
[332520372,1721287975666,-500.0,0.00023013,2]
[332520373,1721287975676,-815.97,0.00023013,2]
[332520374,1721287975687,-540.83812504,0.00023013,2]
[332520375,1721287975697,-500.0,0.00023013,2]
[332520376,1721287975707,-500.0,0.00023013,2]
[332520377,1721287975717,-500.0,0.00023013,2]
[332520378,1721287975726,-1394.22,0.00023013,2]
[332520379,1721287975736,-500.0,0.00023013,2]
[332520380,1721287975746,-1149.47,0.00023013,2]
[332520381,1721287975755,-500.0,0.00023013,2]
[332520382,1721287975764,-500.0,0.00023013,2]
[332520383,1721287975774,-500.0,0.00023013,2]
[332520384,1721287975783,-588.95,0.00023013,2]
[332520385,1721287975793,-460.28637597,0.00023013,2]
[332520386,1721287975803,-500.0,0.00023013,2]
[332520387,1721287975813,-7884.99,0.00023013,2]
[332520388,1721287975823,-1142.52,0.00023013,2]
[332520389,1721287975833,-500.0,0.00023013,2]
[332520390,1721287975842,-2350.96,0.00023013,2]
[332520391,1721287975851,-500.0,0.00023013,2]
[332520392,1721287975861,-500.0,0.00023013,2]
[332520393,1721287975871,-160.74411036,0.00023013,2]
[332520394,1721287975880,-567.84,0.00023013,2]
[332520395,1721287975890,-817.71,0.00023013,2]
[332520396,1721287975900,-751.24,0.00023013,2]
[332520397,1721287975910,-500.0,0.00023013,2]
[332520398,1721287975920,-518.01,0.00023013,2]
[332520399,1721287975930,-9262.82,0.00023013,2]
[332520400,1721287975940,-1047.43,0.00023013,2]
[332520401,1721287975950,-576.17,0.00023013,2]
[332520402,1721287975959,-500.0,0.00023013,2]
[332520403,1721287975969,-500.0,0.00023013,2]
[332520404,1721287975978,-500.0,0.00023013,2]
[332520405,1721287975987,-500.0,0.00023013,2]
[332520406,1721287975997,-500.0,0.00023013,2]
[332520407,1721287976006,-943.1,0.00023013,2]
[332520408,1721287976015,-714.81,0.00023013,2]
[332520409,1721287976024,-500.0,0.00023013,2]
[332520410,1721287976033,-500.0,0.00023013,2]
[332520411,1721287976043,-500.0,0.00023013,2]
[332520412,1721287976052,-500.0,0.00023013,2]
[332520413,1721287976063,-559.22,0.00023013,2]
[332520414,1721287976072,-1700.34,0.00023013,2]
[332520415,1721287976082,-500.0,0.00023013,2]
[332520416,1721287976091,-671.4,0.00023013,2]
[332520417,1721287976100,-595.86,0.00023013,2]
[332520418,1721287976110,-500.0,0.00023013,2]
[332520419,1721287976119,-500.0,0.00023013,2]
[332520420,1721287976130,-500.0,0.00023013,2]
[332520421,1721287976139,-500.0,0.00023013,2]
[332520422,1721287976152,-500.0,0.00023013,2]
[332520423,1721287976162,-500.0,0.00023013,2]
[332520424,1721287976171,-500.0,0.00023013,2]
[332520425,1721287976181,-500.0,0.00023013,2]
[332520426,1721287976190,-897.02,0.00023013,2]
[332520427,1721287976199,-500.0,0.00023013,2]
[332520428,1721287976209,-500.0,0.00023013,2]
[332520429,1721287976218,-919.85,0.00023013,2]
[332520430,1721287976228,-763.5,0.00023013,2]
[332520431,1721287976237,-915.85,0.00023013,2]
[332520432,1721287976247,-812.96,0.00023013,2]
[332520433,1721287976256,-709.03,0.00023013,2]
[332520434,1721287976266,-500.0,0.00023013,2]
[332520435,1721287976276,-500.0,0.00023013,2]
[332520436,1721287976285,-1583.56,0.00023013,2]
[332520437,1721287976295,-500.0,0.00023013,2]
[332520438,1721287976304,-634.02,0.00023013,2]
[332520439,1721287976314,-329.593669,0.00023013,2]
[332520440,1721287976323,-1299.19,0.00023013,2]
[332520441,1721287976332,-576.3,0.00023013,2]
[332520442,1721287976341,-1450.66,0.00023013,2]
[332520443,1721287976351,-500.0,0.00023013,2]
[332520444,1721287976361,-500.0,0.00023013,2]
[332520445,1721287976370,-500.0,0.00023013,2]
[332520446,1721287976380,-708.78,0.00023013,2]
[332520447,1721287976389,-500.0,0.00023013,2]
[332520448,1721287976400,-368.30329755,0.00023013,2]
[332520449,1721287976410,-500.0,0.00023013,2]
[332520450,1721287976419,-948.76,0.00023013,2]
[332520451,1721287976429,-500.0,0.00023013,2]
[332520452,1721287976438,-2003.88,0.00023013,2]
[332520453,1721287976447,-1051.57,0.00023013,2]
[332520454,1721287976456,-796.81,0.00023013,2]
[332520455,1721287976465,-601.06,0.00023013,2]
[332520456,1721287976475,-515.65,0.00023013,2]
[332520457,1721287976485,-1013.83,0.00023013,2]
[332520458,1721287976494,-500.0,0.00023013,2]
[332520459,1721287976504,-500.0,0.00023013,2]
[332520460,1721287976513,-544.27,0.00023013,2]
[332520461,1721287976522,-503.35,0.00023013,2]
[332520462,1721287976531,-500.0,0.00023013,2]
[332520463,1721287976540,-1547.31,0.00023013,2]
[332520464,1721287976549,-500.0,0.00023013,2]
[332520465,1721287976558,-500.0,0.00023013,2]
[332520466,1721287976568,-500.0,0.00023013,2]
[332520467,1721287976576,-500.0,0.00023013,2]
[332520468,1721287976585,-500.0,0.00023013,2]
[332520469,1721287976595,-612.66,0.00023013,2]
[332520470,1721287976604,-957.7,0.00023013,2]
[332520471,1721287976613,-999.04,0.00023013,2]
[332520472,1721287976623,-677.55,0.00023013,2]
[332520473,1721287976636,-500.0,0.00023013,2]
[332520474,1721287976646,-549.83,0.00023013,2]
[332520475,1721287976657,-500.0,0.00023013,2]
[332520476,1721287976667,-798.47,0.00023013,2]
[332520477,1721287976676,-500.0,0.00023013,2]